Cogmind - Beta 11 @@@ ROGUE MODE // 2022.04.07 @ 09:43:25 Player: Virvatuli Result: Destroyed by as-85777 with Assembled Maul Performance ------------- Evolutions (0) 0 Regions Visited (2) 400 Robots Destroyed (16) 80 Value Destroyed (312) 312 Prototype IDs (0) 0 Alien Tech Used (0) 0 Bonus (16) 16 TOTAL SCORE: 808 Bonus ------- High Alert Combat Kills 16 Cogmind --------- Core Integrity 0/250 Matter 228/300 Energy 42/100 System Corruption 2% Temperature Cool (0) Movement Core (50) Location -10/Mines Parts ------- > --- POWER (1) -------- (None) > --- PROPULSION (2) --- (None) > --- UTILITY (2) ------ (None) > --- WEAPON (2) ------- (None) > --- INVENTORY (5) ---- Light Ion Engine Hover Unit Heat Sink Peak State ------------ > --- POWER ------------ Ion Engine > --- PROPULSION ------- Light Treads Light Treads > --- UTILITY ---------- High-capacity Matter Pod Visual Processing Unit > --- WEAPON ----------- Assault Rifle Rocket Launcher > --- INVENTORY -------- Assault Rifle Grenade Launcher [Rating: 9] Favorites ----------- Power Ion Engine Engine Ion Engine Propulsion Light Treads Treads Light Treads Hover Unit Hover Unit Utility Sensor Array Device Sensor Array Storage High-capacity Matter Pod Processor Signal Interpreter Weapon EMP Blaster Ballistic Gun Assault Rifle Launcher EMP Blaster Build | -11 -10 -10 ------- Run | Scr Mat Min Slots Evolved . | . . . Power . | . . . Propulsion . | . . . Utility . | . . . Weapon . | . . . Parts Attached 20 | 5 15 . Power 3 | 1 2 . Engine 3 | 1 2 . Core . | . . . Reactor . | . . . Propulsion 5 | 2 3 . Treads 4 | 2 2 . Leg . | . . . Wheel . | . . . Hover 1 | . 1 . Flight . | . . . Utility 4 | . 4 . Device 1 | . 1 . Storage 1 | . 1 . Processor 2 | . 2 . Hackware . | . . . Protection . | . . . Artifact . | . . . Weapon 8 | 2 6 . Energy Gun . | . . . Energy Cannon . | . . . Ballistic Gun 2 | 2 . . Ballistic Cannon . | . . . Launcher 6 | . 6 . Special Weapon . | . . . Impact Weapon . | . . . Slashing Weapon . | . . . Piercing Weapon . | . . . Special Melee Weapon . | . . . Unidentified Prototypes . | . . . Parts Lost 5 | . . 5 Power 1 | . . 1 Propulsion 2 | . . 2 Utility . | . . . Weapon 2 | . . 2 Highest Loss Streak 5 | . . 5 To Critical Strikes . | . . . Average Slot Usage (%) 94 | . 96 60 Engine 13 | . 14 7 Treads 26 | . 27 17 Device 6 | . 6 10 Storage 6 | . 7 . Processor 12 | . 12 10 Ballistic Gun 8 | . 9 . Launcher 17 | . 17 14 Naked Turns 3 | . . 3 Heaviest Build 15 | 9 15 14 Greatest Support 40 | 40 40 40 Greatest Overweight (x) 1 | 1 1 . Average Overweight (x) . | . . . Largest Inventory Capacity 5 | 5 5 5 Average Capacity 5 | 5 5 5 Most Carried 5 | 1 5 3 Average Carried 1 | . 1 3 Final Capacity 5 | 5 5 5 Final Carried 3 | . 3 3 Class Distribution -------------------- 100% | Mutant Dominant Class ---------------- Mutant | -10/Materials Mutant | -10/Mines Resources | -11 -10 -10 ----------- Run | Scr Mat Min Matter Collected 495 | 200 266 29 Remotely . | . . . Salvage Created 510 | . 412 98 Parts 32 | . 31 1 Haulers Intercepted . | . . . Recyclers Shooed . | . . . Parts Field Recycled . | . . . Retrieved Matter . | . . . Parts Self-Destructed . | . . . Prevented . | . . . Kills | -11 -10 -10 ------- Run | Scr Mat Min Combat Hostiles Destroyed 12 | . 7 5 AOE 12 | . 7 5 Classes Destroyed 7 | . 6 1 Worker 4 | . 3 1 Builder 1 | . 1 . Recycler 2 | . 2 . Watcher 2 | . 2 . Swarmer 3 | . 3 . Grunt 4 | . 4 . Assembled 5 | . . 5 Best Kill Streak 7 | . 7 6 Combat Bots Only 5 | . 3 5 Max Kills in Single Turn 4 | . 3 4 Gunslinging . | . . . Exploded 4 | . 3 4 Melee . | . . . Uniques/NPCs Destroyed . | . . . Combat | -11 -10 -10 -------- Run | Scr Mat Min Damage Taken 808 | . 155 653 Core 274 | . 35 239 Absorbed by Shields . | . . . Regen/Repaired (Parts) 38 | . 38 . Core Remaining (%) 100 | 100 . . Volleys Fired 19 | . 16 3 Largest 2 | . 2 2 Hottest 66 | . 66 66 Shots Fired 36 | . 30 6 Gun 11 | . 11 . Cannon . | . . . Launcher 25 | . 19 6 Special . | . . . Kinetic 11 | . 11 . Thermal . | . . . Explosive 9 | . 9 . Electromagnetic 16 | . 10 6 Robot Hit Streak 2 | . 2 2 Robot Miss Streak 4 | . 4 2 Penetration Max . | . . . Secondary Targets . | . . . Shots Hit Robots 10 | . 8 2 Core Hits 39 | . 24 15 Critical Kills . | . . . Critical Parts Destroyed . | . . . Critical Strikes . | . . . Melee Attacks . | . . . Impact . | . . . Slashing . | . . . Piercing . | . . . Sneak Attacks . | . . . Combat Hostiles . | . . . Follow-up Attacks . | . . . Damage Inflicted 1153 | . 715 438 Guns 39 | . 39 . Cannons . | . . . Explosions 1112 | . 676 436 Melee . | . . . Ramming 2 | . . 2 Kinetic 39 | . 39 . Thermal 229 | . 117 112 Explosive 326 | . 326 . Electromagnetic 557 | . 233 324 Impact . | . . . Slashing . | . . . Piercing . | . . . Highest Corruption 2 | . . 2 Average Corruption 2 | . . 2 Corruption Purged . | . . . Corruption Blocked . | . . . Overload Shots . | . . . Overflow Damage 14 | . . 14 Projectiles . | . . . Explosions 14 | . . 14 Melee . | . . . Knockbacks . | . . . Impact . | . . . Kinetic . | . . . Secondary . | . . . Self-Inflicted Damage 50 | . 32 18 Shots 3 | . 1 2 Rammed 1 | . . 1 Targets Rammed 1 | . . 1 Kicked . | . . . Crushed . | . . . Highest Temperature 18 | . 18 6 Average Temperature 5 | . 6 4 Received Heat Transfer 91 | . 51 40 Siege Activations . | . . . Robots Corrupted . | . . . Combat Hostiles . | . . . Parts Fried . | . . . Impact Corruptions . | . . . Robots Melted . | . . . Combat Hostiles . | . . . Parts Melted . | . . . Heat Transferred 250 | . 100 150 Parts Sabotaged . | . . . Parts Stolen . | . . . Parts Stripped . | . . . Power Chain Reactions 2 | . 1 1 Missiles Intercepted . | . . . Alert | -11 -10 -10 ------- Run | Scr Mat Min Peak Influence 489 | . 489 159 Initial 132 | . . 132 Average 231 | . 268 135 Maximum Alert Level 2 | . 2 . Low Security (%) 41 | 100 30 100 Level 1 33 | . 40 . Level 2 24 | . 28 . Level 3 . | . . . Level 4 . | . . . Level 5 . | . . . High Security . | . . . Max Security . | . . . Squads Dispatched 1 | . 1 . Investigation 1 | . 1 . Extermination . | . . . Reinforcement . | . . . Assault . | . . . Garrison . | . . . Intercept . | . . . Searches Triggered . | . . . Construction Impeded . | . . . Haulers Reinforced . | . . . Active Scanning Responses . | . . . Cargo Convoy Interrupts . | . . . Stealth | -11 -10 -10 --------- Run | Scr Mat Min Distress Signals . | . . . Communications Jammed . | . . . Distress Signals . | . . . Times Spotted 31 | . 14 17 Peak Tracking Total 16 | . 4 16 Tactical Retreats 2 | . 1 1 Traps | -11 -10 -10 ------- Run | Scr Mat Min Traps Triggered . | . . . Indirectly . | . . . Trap Hack Attempts . | . . . Triggered . | . . . Disarmed . | . . . Reprogrammed . | . . . Reused . | . . . Traps Extracted . | . . . Installed . | . . . Triggered . | . . . Machines | -11 -10 -10 ---------- Run | Scr Mat Min Machines Disabled 8 | . 7 1 Max in Single Turn 3 | . 3 1 Machines Sabotaged . | . . . Garrisons Compromised . | . . . Overloaded Fab Kills . | . . . Hacking | -11 -10 -10 --------- Run | Scr Mat Min Machines Accessed 4 | . 3 1 Terminals 2 | . 1 1 Fabricators . | . . . Repair Stations 1 | . 1 . Recycling Units 1 | . 1 . Scanalyzers . | . . . Garrison Access . | . . . Total Hacks 13 | . 10 3 Successful 10 | . 8 2 Failed 3 | . 2 1 Catastrophic . | . . . Database Lockouts . | . . . Manual . | . . . Terminals 8 | . 5 3 Fabricators . | . . . Repair Stations 3 | . 3 . Recycling Units 2 | . 2 . Scanalyzers . | . . . Garrison Access . | . . . Terminal Hacks 6 | . 4 2 Alert Level 2 | . 2 . Unreport Threat 1 | . 1 . Dispatch Records 1 | . . 1 Investigation Status 1 | . 1 . Recall Investigation 1 | . . 1 Fabricator Hacks . | . . . Repair Station Hacks 2 | . 2 . Scan Component 1 | . 1 . Repair 1 | . 1 . Recycling Unit Hacks 2 | . 2 . Report Inventory 1 | . 1 . Retrieve Components 1 | . 1 . Scanalyzer . | . . . Garrison Access Hacks . | . . . Unauthorized Hacks . | . . . Terminals . | . . . Fabricators . | . . . Repair Stations . | . . . Recycling Units . | . . . Scanalyzers . | . . . Garrison Access . | . . . Data Cores Recovered . | . . . Used . | . . . Hacking Detections 4 | . 3 1 Full Trace Events 1 | . 1 . Feedback Events . | . . . Feedback Blocked . | . . . Robot Schematics Acquired . | . . . Robots Built . | . . . Authchips . | . . . Time . | . . . Total Robot Build Rating . | . . . Part Schematics Acquired . | . . . Parts Built . | . . . Authchips . | . . . Time . | . . . Total Part Build Rating . | . . . Parts Repaired 1 | . 1 . Time 32 | . 32 . Parts Recycled . | . . . Recycled Matter . | . . . Retrieved Matter . | . . . Retrieved Components 2 | . 2 . Parts Scanalyzed . | . . . Part Schematics Acquired . | . . . Parts Damaged . | . . . Bothacking | -11 -10 -10 ------------ Run | Scr Mat Min Used RIF Installer . | . . . Robots Hacked . | . . . Non-combat . | . . . Combat . | . . . Robot Hacks Applied . | . . . Relay Couplers Released . | . . . Fabnet Peak Effective % . | . . . Robots Rewired . | . . . Allies Hacked . | . . . Hacks Repelled . | . . . Allies | -11 -10 -10 -------- Run | Scr Mat Min Total Allies . | . . . Largest Group . | . . . Highest-Rated Group . | . . . Highest-Rated Ally . | . . . Total Orders . | . . . Ally Attacks . | . . . Total Damage . | . . . Kills . | . . . Allies Corrupted . | . . . Allies Melted . | . . . Intel | -11 -10 -10 ------- Run | Scr Mat Min Robot Analysis Total . | . . . Derelict Logs Recovered . | . . . Drone Launches . | . . . Drone Recoveries . | . . . Exploration | -11 -10 -10 ------------- Run | Scr Mat Min Turns Passed 609 | 67 509 33 Spaces Moved 309 | 41 244 24 Core 22 | 7 . 15 Treads 282 | 34 239 9 Legs . | . . . Wheels . | . . . Hover 5 | . 5 . Flight . | . . . Fastest Speed 50 | 50 120 50 Average Speed 152 | 147 159 91 Slowest Speed 160 | 160 160 160 Overloaded Moves . | . . . Propulsion Burnouts . | . . . Robots Hopped . | . . . Cave-ins Triggered . | . . . Exploration Rate (%) 15 | 3 36 6 Regions Visited 2 Branch Regions 1 Pre-discovered Areas . | . . . Known Exits Taken 1 | . 1 . Unknown Exits Taken 1 | 1 . . Scrap Searched . | . . . Spaces Dug . | . . . Terrain Destroyed 118 | . 116 2 Melee . | . . . Projectile . | . . . AOE 118 | . 116 2 Terrain Rammed . | . . . Walls Destroyed . | . . . Machines Disabled . | . . . Actions | -11 -10 -10 --------- Run | Scr Mat Min Total 412 | 46 338 28 Wait 37 | . 37 . Move 307 | 40 243 24 Hop . | . . . Pick Up 16 | 1 15 . Fast Attach 5 | 4 1 . Attach 10 | 1 9 . Detach 2 | . 2 . Swap 5 | . 5 . Drop 10 | . 10 . Fire 19 | . 16 3 Melee . | . . . Ram . | . . . Kick . | . . . Crush 1 | . . 1 Escape Stasis . | . . . Rewire . | . . . Trap . | . . . Miscellaneous . | . . . Route ------- -11/Scrapyard -10/Materials -10/Mines History --------- Turn | Location | Event 23 | -11/Scrapyard | Discovered new exit (range 15) 68 | -11/Scrapyard | Entered Materials 181 | -10/Materials | Repaired Rocket Launcher 317 | -10/Materials | Build established: Mutant 544 | -10/Materials | Discovered new exit (range 8) 576 | -10/Materials | Identified exit to Mines 577 | -10/Materials | Entered Mines 578 | -10/Mines | Assembled infested the area 607 | -10/Mines | Core integrity fell below 50% 607 | -10/Mines | Released all parts (2) 609 | -10/Mines | Core integrity fell below 20% 610 | -10/Mines | Destroyed by as-85777 with Assembled Maul Last Messages --------------- 00588_ Slammed into as-71463. 00591_ as-66965 IFF system glitched. 00592_ as-92489 destroyed. 00592_ Chain reaction triggered in Corrupted Lgt. Ion Engine. 00592_ as-66965 destroyed. 00592_ Destroyed Asb. F-torch. 00592_ as-88184 destroyed. 00592_ Destroyed Asb. F-torch. 00592_ as-91342 destroyed. 00592_ Ion Engine destroyed. 00592_ System corrupted by crushing effect (+2). 00595_ as-71463 destroyed. 00595_ EMP Blaster destroyed. 00595_ Lgt. Treads destroyed. 00598_ Acquired 20 matter. 00598_ EMP Blaster destroyed. 00601_ Lgt. Treads destroyed. 00605_ Acquired 9 matter. 00607_ Released Signal Interpreter. 00607_ Released Sensor Array. Map ----- +----------------------------------------------------+ | ???????????????????????????????????????????????? | | ???????????????????????????????????????????????? | | ???????????????????????????????????????????????? | | ???????????????????????????????????????????????? | | ???????????????????????????????????????????????? | | ???????????????????????????????????????????????? | | ???????????????????????????????????????????????? | | ???????????????????????????????????????????????? | | ???????????????????????????????????????????????? | | ???????????????????????????????????????????????? | | ???????????????????????????????????????????????? | | ???????????????????????????????????????????????? | | ???????????????????????????????????????????????? | | ???????????????????????????????????????????????? | | ???????????????????????????????????????????????? | | ???????????????????????????????????????????????? | | ???????????????????????????????????????????????? | | ???????????????????????????????????????????????? | | ???????????????????????????????????????????????? | | ???????????????????????????????????????????????? | | ??????????????????????????????##???????????????? | | ????????????????????????????? ##??????????????? | | ??????????????????###?###??? ##?????????????? | | ???????????????#### ### ##? ###???????????? | | ???????????????# = a ## #???????????? | | ???????????????# a@ #??????????? | | ???????????????# %aaaa # #??????????? | | ???????????????# % !aa##a##?????##??????????? | | ???????????????# a #? #??????????????????? | | ???????????????# !#??#??????????????????? | | ???????????????# #?????????????????????? | | ???????????????# #?????????????????????? | | ???????????????#T#########?????????????????????? | | ???????????????###?????????????????????????????? | | ???????????????????????????????????????????????? | | ???????????????????????????????????????????????? | | ???????????????????????????????????????????????? | | ???????????????????????????????????????????????? | | ???????????????????????????????????????????????? | | ???????????????????????????????????????????????? | | ???????????????????????????????????????????????? | | ???????????????????????????????????????????????? | | ???????????????????????????????????????????????? | | ???????????????????????????????????????????????? | | | | | | | | | | | | | +----------------------------------------------------+ Best States ------------- Heat Dissipation 25 Energy Generation 10 Energy Capacity 250 Matter Stores 252 Matter Capacity 500 Sight Range 18 Robot Scan Range 14 Terrain Scan Density 10 Evasion (%) 50 Recoil Reduction 2 Item Schematics ----------------- None Robot Schematics ------------------ None Fabricated ------------ Nothing Alien Tech Used ----------------- None Achievements -------------- Everything Is Under Control Challenges ------------ None Game ------ Seed EnergyIonExoskeleton Manual? 0 Play Time 00:16:03 Cumulative 8.1 hours Start 2022.04.07 @ 09:23:41 End 2022.04.07 @ 09:43:25 Sessions 1 Manual Loads 0 Difficulty Rogue Special Mode None Game No. 16 Rogue 16 Adventurer 0 Explorer 0 Win Type - Total 0 Types 0/0/0/0/0/0/0/0/0 Lore% 11 Gallery% 17 Achievement% 15 Wizard Run 0 Options --------- ASCII 0 Keyboard 0 Movement Mouse Keybinds 0 Fullscreen 2 Font 18/SmallcapsGlow Map View 76x50 Tactical HUD 1 Map Filters NONE Filters NONE Steam 1 RUN: c0cf94c4-59bc-474a-aa52-8ae847c04f24